fUSD/lending_fUSD_20260112
["ID","MTS","AMOUNT","RATE_DAILY","PERIOD"]
[401408564,1768188658647,-200.519287,0.0001773,2]
[401408565,1768188658657,-261.160713,0.0001773,2]
[401408566,1768188658809,-2437.0,0.00017511,2]
[401408567,1768188658819,-2666.0,0.0001773,2]
[401408568,1768188658832,-24.449834,0.0001773,2]
[401408569,1768188658843,-310.766084,0.0001773,2]
[401408570,1768188658853,-200.519287,0.0001773,2]
[401408571,1768188658862,-528.43588306,0.00018,2]
[401408572,1768188658872,-444.81816065,0.00018,2]
[401408573,1768188658887,-48626.4191349,0.00018,2]
[401408574,1768188659001,-110.88989001,0.00018,2]
[401408575,1768188659012,-500.0,0.00018,2]
[401408576,1768188659042,-366.19457966,0.0001773,2]
[401408578,1768188693014,4328.267,0.00013042,2]
[401408579,1768188693056,294.841,0.00013042,2]
[401408584,1768188747748,1825.4,0.00013131,2]
[401408585,1768188749688,-204.00360972,0.00013258,2]
[401408586,1768188749709,-204.00360972,0.00013258,2]
[401408587,1768188749730,-273.50705729,0.00013258,2]
[401408588,1768188752551,-168.82690202,0.00013258,2]
[401408589,1768188755220,-327.02019234,0.00013258,2]
[401408590,1768188756516,-413.62305256,0.00013258,2]
[401408591,1768188757527,500.0,0.0001313,2]
[401408592,1768188759149,-166.66,0.00013258,2]
[401408593,1768188761107,2400.0,0.000129,4]
[401408594,1768188792943,500.0,0.000129,4]
[401408595,1768188859988,1917.77,7.759e-05,2]
[401408596,1768188860211,1917.77,8.151e-05,2]
[401408597,1768188860409,1917.77,8.543e-05,2]
[401408598,1768188860615,1917.77,8.936e-05,2]
[401408599,1768188860823,1917.77,9.328e-05,2]
[401408600,1768188861007,411.16,9.72e-05,2]
[401408601,1768188861030,1506.61,9.72e-05,2]
[401408602,1768188861215,1917.77,0.00010113,2]
[401408603,1768188861462,1318.55926225,0.00010505,2]
[401408604,1768188861484,599.21073775,0.00010505,2]
[401408605,1768188861650,1917.77,0.00010897,2]
[401408606,1768188861912,1917.77,0.0001129,2]
[401408607,1768188862119,835.16226204,0.00011682,2]
[401408608,1768188862141,1082.60773796,0.00011682,2]
[401408609,1768188862319,1917.77,0.00012074,2]
[401408610,1768188878913,-166.66,0.00012467,2]
[401408611,1768188881194,-250.0,0.00012467,2]
[401408612,1768188883734,1110.78417922,0.00013307,3]
[401408613,1768188884149,-275.0,0.00012467,2]
[401408614,1768188885698,-166.66,0.00012467,2]
[401408615,1768188887939,-231.83004513,0.00012467,2]
[401408616,1768188891678,-195.0,0.00012467,2]
[401408617,1768188895251,-168.55203038,0.00012467,2]
[401408618,1768188896406,-284.67298197,0.00012467,2]
[401408619,1768188899991,-179.39494252,0.00012467,2]
[401408620,1768188900011,-386.40616915,0.00012859,2]
[401408621,1768188903914,-323.89022694,0.00012859,2]
[401408622,1768188906004,-179.13660126,0.00012859,2]
[401408623,1768188909979,-293.92349696,0.00012859,2]
[401408624,1768188912964,-216.04641813,0.00012859,2]
[401408625,1768188916706,-349.72397866,0.00012859,2]
[401408626,1768188918767,-152.24156188,0.00012859,2]
[401408627,1768188952978,-173.41473106,0.00012794,2]
[401408628,1768188956005,1192.415367,0.00011844,2]
[401408629,1768188956538,-267.17649534,0.00012794,2]
[401408630,1768188958090,-301.0211071,0.00012794,2]
[401408631,1768188959605,-335.98824633,0.00012794,2]
[401408632,1768188961664,-214.65359386,0.00012794,2]
[401408633,1768188963766,-159.20714182,0.00012794,2]
[401408634,1768188966605,-166.37816147,0.00012794,2]
[401408635,1768188969659,-151.80254426,0.00012794,2]
[401408636,1768188971213,-266.13990607,0.00012794,2]
[401408637,1768188982854,-19.91729269,0.00012794,2]
[401408638,1768188982882,-319.52610379,0.00012811,2]
[401408639,1768188984403,-298.54134994,0.00012811,2]
[401408640,1768188985935,-300.0,0.00012811,2]
[401408641,1768188988911,-112.14254627,0.00012811,2]
[401408642,1768188988933,-16.40154702,0.00012859,2]
[401408643,1768188988954,-49.14875064,0.00012859,2]
[401408644,1768188991543,-155.03310647,0.00012859,2]
[401408645,1768189029142,-188.43518359,0.00012695,2]
[401408646,1768189030932,-173.27926553,0.00012759,2]
[401408647,1768189030958,-9.59326018,0.00012859,2]
[401408648,1768189103993,-150.0,0.00012725,2]
[401408649,1768189104017,-58.56556313,0.00012792,2]
[401408650,1768189147861,-191.43443687,0.00012792,2]
[401408651,1768189147887,-108.56556313,0.00012809,2]
[401408652,1768189150638,-179.17683286,0.000128,2]
[401408653,1768189152051,-11.46659163,0.000128,2]
[401408654,1768189152082,-246.5644123,0.000128,2]
[401408655,1768189157409,-67.40259777,0.000128,2]
[401408656,1768189157432,-117.55246358,0.00012809,2]
[401408657,1768189160229,-73.88197329,0.00012809,2]
[401408658,1768189160258,-263.39186271,0.00012825,2]
[401408659,1768189207714,-922.37,0.00012646,2]
[401408660,1768189207767,-255.0,0.00012825,2]
[401408661,1768189207804,-36.60813729,0.00012825,2]
[401408662,1768189207837,-195.0,0.00012825,2]
[401408663,1768189207870,-3.24488271,0.00012859,2]
[401408664,1768189207921,-163.62066505,0.00013108,2]
[401408665,1768189208302,-163.62066504,0.000132,2]
[401408666,1768189208332,-300.0,0.00013206,2]
[401408667,1768189208362,-300.0,0.00013206,2]
[401408668,1768189208391,-300.0,0.00013206,2]
[401408669,1768189208422,-300.0,0.00013206,2]
[401408670,1768189208453,-1200.0,0.00013206,2]
[401408671,1768189208482,-521.08129982,0.00013207,2]
[401408672,1768189222217,-678.91870018,0.00013207,2]
[401408673,1768189222251,-500.0,0.00013207,2]
[401408674,1768189222286,-500.0,0.00013207,2]
[401408675,1768189222316,-150.0,0.00013207,2]
[401408676,1768189222349,-500.0,0.00013207,2]
[401408677,1768189222383,-500.0,0.00013207,2]
[401408678,1768189222416,-500.0,0.00013207,2]
[401408679,1768189222449,-500.0,0.00013207,2]
[401408680,1768189222480,-500.0,0.00013207,2]
[401408681,1768189222512,-500.0,0.00013207,2]
[401408682,1768189319398,-302.01870332,0.00012547,2]
[401408683,1768189321134,-396.53446097,0.00012547,2]
[401408685,1768189334296,-13.89111071,0.00012547,2]
[401408686,1768189334327,-1000.0,0.0001298,2]
[401408687,1768189334358,-300.0,0.00013206,2]
[401408688,1768189334388,-300.0,0.00013206,2]
[401408689,1768189334420,-150.0,0.00013206,2]
[401408690,1768189343415,-349.03312016,0.00012547,2]
[401408691,1768189348657,-166.64583723,0.00012547,2]
[401408692,1768189350247,-311.5501207,0.00012547,2]
[401408693,1768189372669,-500.0,0.00013206,2]
[401408694,1768189372700,-500.0,0.00013206,2]
[401408695,1768189372729,-500.0,0.00013206,2]
[401408696,1768189372757,-500.0,0.00013206,2]
[401408697,1768189372786,-500.0,0.00013206,2]
[401408698,1768189372815,-500.0,0.00013206,2]
[401408699,1768189372845,-500.0,0.00013206,2]
[401408700,1768189372873,-500.0,0.00013206,2]
[401408701,1768189372903,-500.0,0.00013206,2]
[401408702,1768189372932,-500.0,0.00013206,2]
[401408703,1768189447786,-300.01319839,0.00012782,2]
[401408704,1768189452958,-221.1910972,0.00012782,2]
[401408705,1768189456419,-233.31822963,0.00012782,2]
[401408706,1768189457880,-222.0,0.00012782,2]
[401408707,1768189461193,-300.0,0.00012782,2]
[401408709,1768189464070,-301.98869862,0.00012782,2]
[401408710,1768189468733,-155.04733483,0.00012782,2]
[401408711,1768189471256,-300.0,0.00012782,2]
[401408712,1768189474794,-477.18286113,0.00012782,2]
[401408713,1768189474951,-3048.1485802,0.00012782,2]
[401408714,1768189488475,-131.45,0.00012886,2]
[401408715,1768189489023,-4185.633918,0.00012886,2]
[401408716,1768189517913,-4448.533918,0.00012886,2]
[401408717,1768189517948,-1102.942164,0.00012886,2]
[401408718,1768189518115,-300.0,0.00012996,2]
[401408719,1768189518149,-195.0,0.00012996,2]
[401408720,1768189518178,-302.43421383,0.00012996,2]
[401408721,1768189518208,-203.39282247,0.00013106,2]
[401408722,1768189518239,-229.34246668,0.00013121,2]
[401408723,1768189518271,-195.0,0.00013121,2]
[401408724,1768189518298,-203.39282247,0.000132,2]
[401408725,1768189518327,-1200.0,0.00013205,2]
[401408726,1768189518355,-300.0,0.00013205,2]
[401408727,1768189518383,-1200.0,0.00013205,2]
[401408728,1768189518413,-300.0,0.00013205,2]
[401408729,1768189518442,-150.0,0.00013205,2]
[401408730,1768189518699,-500.0,0.00013206,2]
[401408731,1768189518730,-500.0,0.00013206,2]
[401408732,1768189518765,-500.0,0.00013206,2]
[401408733,1768189518797,-500.0,0.00013206,2]
[401408734,1768189518828,-500.0,0.00013206,2]
[401408735,1768189518860,-500.0,0.00013206,2]
[401408736,1768189518892,-500.0,0.00013206,2]
[401408737,1768189518923,-500.0,0.00013206,2]
[401408738,1768189518953,-500.0,0.00013206,2]
[401408739,1768189518984,-500.0,0.00013206,2]
[401408740,1768189519309,-442.8853491,0.00013206,2]
[401408741,1768189519328,-0.01,0.00013206,2]
[401408742,1768189519866,-57.1046509,0.00013206,2]
[401408743,1768189519892,-572.97849072,0.00013206,2]
[401408744,1768189519917,-397.0864036,0.00013206,2]
[401408745,1768189531557,-183.63,0.00012699,2]
[401408746,1768189531592,-102.9135964,0.00013206,2]
[401408747,1768189531623,-500.0,0.00013206,2]
[401408748,1768189531722,-8426.9228072,0.00013207,2]
[401408749,1768189531873,-440.0713072,0.00013207,2]
[401408750,1768189531896,-9119.8673856,0.00013207,2]
[401408751,1768189551151,-238.31380589,0.00013207,2]
[401408752,1768189599099,-152.68088658,0.0001264,2]
[401408753,1768189601035,-247.27177859,0.0001264,2]
[401408754,1768189604877,-409.2663801,0.0001264,2]
[401408755,1768189613399,-176.80256622,0.00012552,2]
[401408756,1768189627126,-23.19743378,0.00012552,2]
[401408757,1768189627151,-139.17095473,0.0001264,2]
[401408758,1768189627177,-300.0,0.000132,2]
[401408759,1768189627200,-2067.86988123,0.00013201,2]
[401408760,1768189636078,-296.33407029,0.00013201,2]
[401408761,1768189653064,2800.0,0.000128,4]
[401408762,1768189655147,5600.0,0.000129,4]
[401408763,1768189708672,-580.74,0.0001252,2]
[401408764,1768189708707,-772.64077195,0.00013101,2]
[401408765,1768189708740,-772.64077195,0.00013101,2]
[401408766,1768189708770,-818.26614188,0.00013101,2]
[401408767,1768189708802,-300.0,0.00013106,2]
[401408768,1768189708832,-150.0,0.00013106,2]
[401408769,1768189708861,-1200.0,0.00013106,2]
[401408770,1768189709040,-811.43462844,0.00013107,2]
[401408771,1768189745659,-300.0,0.00013106,2]
[401408772,1768189745684,-30757.72853055,0.00013107,2]
[401408773,1768189746083,-5112.98959507,0.00013107,2]
[401408774,1768189749091,-36455.64308222,0.00013107,2]
[401408775,1768189752076,-251601.8957599,0.00013107,2]
[401408776,1768189762097,-1091.41883641,0.00013107,2]
[401408777,1768189772151,-10000.01,0.00013107,2]
[401408778,1768189772519,-10000.01,0.00013107,2]
[401408779,1768189772844,-10000.01,0.00013107,2]
[401408780,1768189773145,-10000.01,0.00013107,2]
[401408781,1768189773333,-10000.01,0.00013107,2]
[401408782,1768189773479,-10000.01,0.00013107,2]
[401408783,1768189773654,-10000.01,0.00013107,2]
[401408784,1768189773846,-10000.01,0.00013107,2]
[401408785,1768189774055,-10000.01,0.00013107,2]
[401408786,1768189795132,-10000.01,0.00013107,2]
[401408787,1768189831440,-409.0,0.00013106,2]
[401408788,1768189831451,-258.0,0.00013106,2]
[401408789,1768189831461,-2272.56562393,0.00013107,2]
[401408790,1768189831473,-957.77070253,0.00013107,2]
[401408791,1768189831493,-2170.13470182,0.00013107,2]
[401408792,1768189831506,-3254.51138063,0.00013107,2]
[401408793,1768189831549,-2548.73865149,0.00013107,2]
[401408794,1768189831560,-297.04785907,0.00013107,2]
[401408795,1768189831572,-9975.77987526,0.00013107,2]
[401408796,1768189831584,-397.84647269,0.00013107,2]
[401408797,1768189831604,-2151.7138018,0.00013107,2]
[401408798,1768189831616,-1516.48438079,0.00013107,2]
[401408799,1768189831628,-387.11639996,0.00013107,2]
[401408800,1768189831639,-1603.75891355,0.00013107,2]
[401408801,1768189831655,-35512.79303443,0.00013107,2]
[401408802,1768189831666,-22077.36632794,0.00013107,2]
[401408803,1768189831678,-977.95038533,0.00013107,2]
[401408804,1768189831690,-1680.66735613,0.00013107,2]
[401408805,1768189831702,-606.32067395,0.00013107,2]
[401408806,1768189831714,-1023.31953828,0.00013107,2]
[401408807,1768189831726,-979.31163854,0.00013107,2]
[401408808,1768189831741,-1958.42417155,0.00013107,2]
[401408809,1768189831752,-1693.63405355,0.00013107,2]
[401408813,1768189837647,-4182.99997722,0.00013107,2]
[401408814,1768189837805,-6515.51000109,0.00013107,2]
[401408817,1768189837817,-18415.99999998,0.00013107,2]
[401408837,1768189840276,-1.7e-07,0.00013107,2]
[401408838,1768189840313,-451011.02364573,0.00013107,2]
[401408840,1768189840323,-1337.758,0.00013201,2]
[401408842,1768189840333,-3140.7427,0.00013201,2]
[401408843,1768189840343,-3077.0434,0.00013201,2]
[401408844,1768189840353,-500.0,0.00013206,2]
[401408845,1768189840362,-500.0,0.00013206,2]
[401408846,1768189840372,-341.44205453,0.00013206,2]
[401408847,1768189840382,-1000.0,0.00013206,2]
[401408848,1768189840391,-50.58719411,0.00013207,2]
[401408849,1768189840405,-4266.899,0.00013207,2]
[401408850,1768189840415,-151.0,0.00013207,2]
[401408851,1768189840425,-151.0,0.00013207,2]
[401408852,1768189840433,-1000.0,0.00013207,2]
[401408853,1768189840442,-842.32144287,0.00013207,2]
[401408854,1768189840451,-500.0,0.00013208,2]
[401408855,1768189840461,-170.7108,0.00013208,2]
[401408856,1768189840472,-2859.2396,0.00013208,2]
[401408857,1768189840482,-2500.0,0.00013208,2]
[401408858,1768189840491,-1917.77,0.00013251,2]
[401408859,1768189840501,-5549.43,0.00013251,2]
[401408860,1768189840511,-999.99,0.00013251,2]
[401408861,1768189840521,-2649.93,0.00013251,2]
[401408862,1768189840530,-299.99,0.00013258,2]
[401408863,1768189840540,-9999.99,0.00013258,2]
[401408864,1768189840550,-150.99,0.00013258,2]
[401408865,1768189840561,-10400.84246455,0.00013285,2]
[401408866,1768189840571,-809.67411058,0.00013285,2]
[401408867,1768189840581,-14654.50615544,0.00013285,2]
[401408868,1768189840591,-500.0,0.00013299,2]
[401408869,1768189840601,-170.28671488,0.00013299,2]
[401408870,1768189840611,-636.59856985,0.00013299,2]
[401408871,1768189840620,-228.97334267,0.00013299,2]
[401408872,1768189840630,-185.88589955,0.00013299,2]
[401408873,1768189840640,-150.99,0.000133,2]
[401408874,1768189840649,-5445.96,0.000133,2]
[401408875,1768189840659,-9999.99,0.000133,2]
[401408876,1768189840670,-9999.99,0.000133,2]
[401408877,1768189840680,-5931.22,0.000133,2]
[401408878,1768189840689,-200.0,0.000133,2]
[401408879,1768189840699,-171.59830762,0.000133,2]
[401408880,1768189840708,-500.0,0.000133,2]
[401408881,1768189840717,-500.0,0.000133,2]
[401408882,1768189840727,-500.0,0.000133,2]
[401408883,1768189840736,-500.0,0.000133,2]
[401408884,1768189840745,-500.0,0.000133,2]
[401408885,1768189840755,-500.0,0.000133,2]
[401408886,1768189840765,-500.0,0.000133,2]
[401408887,1768189840775,-500.0,0.000133,2]
[401408888,1768189840785,-500.0,0.000133,2]
[401408889,1768189840795,-151.0,0.000133,2]
[401408890,1768189840806,-500.0,0.000133,2]
[401408891,1768189840815,-151.0,0.000133,2]
[401408892,1768189840825,-500.0,0.000133,2]
[401408893,1768189840834,-500.0,0.000133,2]
[401408894,1768189840844,-151.0,0.000133,2]
[401408895,1768189840853,-500.0,0.000133,2]
[401408896,1768189840863,-500.0,0.000133,2]
[401408897,1768189840872,-500.0,0.000133,2]
[401408898,1768189840881,-557.30178876,0.000133,2]
[401408899,1768189840892,-500.0,0.000133,2]
[401408900,1768189840901,-151.0,0.000133,2]
[401408901,1768189840912,-500.0,0.000133,2]
[401408902,1768189840923,-151.0,0.000133,2]
[401408903,1768189840933,-500.0,0.000133,2]
[401408904,1768189840942,-151.0,0.000133,2]
[401408905,1768189840957,-500.0,0.000133,2]
[401408906,1768189840969,-151.0,0.000133,2]
[401408907,1768189840982,-500.0,0.000133,2]
[401408908,1768189840993,-151.0,0.000133,2]
[401408909,1768189841003,-205.67940434,0.000133,2]
[401408910,1768189841014,-500.0,0.000133,2]
[401408911,1768189841025,-151.0,0.000133,2]
[401408912,1768189841036,-151.0,0.000133,2]
[401408913,1768189841049,-151.0,0.000133,2]
[401408914,1768189841060,-151.0,0.000133,2]
[401408915,1768189841069,-151.0,0.000133,2]
[401408916,1768189841080,-200.0,0.000133,2]
[401408917,1768189841092,-200.0,0.000133,2]
[401408918,1768189841103,-151.0,0.000133,2]
[401408919,1768189841115,-151.0,0.000133,2]
[401408920,1768189841125,-151.0,0.000133,2]
[401408921,1768189841137,-151.0,0.000133,2]
[401408922,1768189841148,-151.0,0.000133,2]
[401408923,1768189841161,-151.0,0.000133,2]
[401408924,1768189841172,-151.0,0.000133,2]
[401408925,1768189841183,-151.0,0.000133,2]
[401408926,1768189841193,-151.0,0.000133,2]
[401408927,1768189841204,-151.0,0.000133,2]
[401408928,1768189841216,-151.0,0.000133,2]
[401408929,1768189841226,-151.0,0.000133,2]
[401408930,1768189841235,-151.0,0.000133,2]
[401408931,1768189841245,-151.0,0.000133,2]
[401408932,1768189841255,-151.0,0.000133,2]
[401408933,1768189841265,-151.0,0.000133,2]
[401408934,1768189841276,-151.0,0.000133,2]
[401408935,1768189841287,-151.0,0.000133,2]
[401408936,1768189841298,-151.0,0.000133,2]
[401408937,1768189841308,-151.0,0.000133,2]
[401408938,1768189841318,-415.0,0.000133,2]
[401408939,1768189841328,-500.0,0.000133,2]
[401408940,1768189841338,-5915.23,0.000133,2]
[401408941,1768189841351,-1138.28,0.000133,2]
[401408942,1768189841361,-152.17779461,0.00013342,2]
[401408943,1768189841371,-999.0,0.00013342,2]
[401408944,1768189841380,-150.0,0.00013342,2]
[401408945,1768189841390,-500.0,0.00013342,2]
[401408946,1768189841399,-22356.35,0.00013385,2]
[401408947,1768189841411,-999.0,0.00013397,2]
[401408948,1768189841420,-150.0,0.00013397,2]
[401408949,1768189841431,-500.0,0.00013397,2]
[401408950,1768189841441,-1000.0,0.00013401,2]
[401408951,1768189841451,-1682.4955,0.00013401,2]
[401408952,1768189841462,-153.68270293,0.00013403,2]
[401408953,1768189841472,-500.0,0.00013403,2]
[401408954,1768189841482,-154.087793,0.00013403,2]
[401408955,1768189841494,-500.0,0.00013403,2]
[401408956,1768189841504,-500.0,0.00013403,2]
[401408957,1768189841515,-150.0,0.00013403,2]
[401408958,1768189841526,-150.0,0.00013403,2]
[401408959,1768189841536,-150.0,0.00013403,2]
[401408960,1768189841547,-150.0,0.00013403,2]
[401408961,1768189841558,-500.0,0.00013403,2]
[401408962,1768189841568,-500.0,0.00013403,2]
[401408963,1768189841580,-150.0,0.00013403,2]
[401408964,1768189841592,-150.0,0.00013403,2]
[401408965,1768189841602,-150.0,0.00013403,2]
[401408966,1768189841612,-154.83288335,0.00013403,2]
[401408967,1768189841626,-150.0,0.00013403,2]
[401408968,1768189841636,-180.18340114,0.00013403,2]
[401408969,1768189841646,-150.0,0.00013403,2]
[401408970,1768189841656,-150.0,0.00013403,2]
[401408971,1768189841666,-500.0,0.00013403,2]
[401408972,1768189841676,-999.0,0.00013452,2]
[401408973,1768189841686,-200.0,0.00013452,2]
[401408974,1768189841696,-359.06323949,0.00013452,2]
[401408975,1768189841705,-500.0,0.00013458,2]
[401408976,1768189841718,-500.0,0.00013458,2]
[401408977,1768189841727,-500.0,0.00013458,2]
[401408978,1768189841738,-150.0,0.00013458,2]
[401408979,1768189841748,-194.69690525,0.00013458,2]
[401408980,1768189841758,-150.0,0.00013458,2]
[401408981,1768189841770,-150.0,0.00013458,2]
[401408982,1768189841780,-500.0,0.00013458,2]
[401408983,1768189841792,-500.0,0.00013458,2]
[401408984,1768189841802,-150.96535916,0.00013458,2]
[401408985,1768189841812,-150.0,0.00013458,2]
[401408986,1768189841822,-150.0,0.00013458,2]
[401408987,1768189841834,-216.21656454,0.00013458,2]
[401408988,1768189841845,-150.0,0.00013458,2]
[401408989,1768189841855,-500.0,0.00013458,2]
[401408990,1768189841867,-999.0,0.00013506,2]
[401408991,1768189841878,-500.0,0.00013513,2]
[401408992,1768189841889,-252.87382707,0.00013513,2]
[401408993,1768189841899,-500.0,0.00013513,2]
[401408994,1768189841910,-150.0,0.00013513,2]
[401408995,1768189841921,-150.0,0.00013513,2]
[401408996,1768189841931,-150.0,0.00013513,2]
[401408997,1768189841941,-150.0,0.00013513,2]
[401408998,1768189841952,-282.10315697,0.00013513,2]
[401408999,1768189841962,-204.15967263,0.00013513,2]
[401409000,1768189841971,-160.92556746,0.00013513,2]
[401409001,1768189841980,-150.0,0.00013513,2]
[401409002,1768189841990,-500.0,0.00013513,2]
[401409003,1768189842000,-999.0,0.00013561,2]
[401409004,1768189842011,-500.0,0.00013567,2]
[401409005,1768189842021,-500.0,0.00013567,2]
[401409006,1768189842031,-202.62137386,0.00013567,2]
[401409007,1768189842043,-296.09401039,0.00013567,2]
[401409008,1768189842055,-150.0,0.00013567,2]
[401409009,1768189842064,-228.90011293,0.00013567,2]
[401409010,1768189842076,-307.44839368,0.00013567,2]
[401409011,1768189842085,-647.15614815,0.00013574,2]
[401409012,1768189842100,-1138.28,0.00013574,2]
[401409013,1768189842111,-999.0,0.00013616,2]
[401409014,1768189842122,-500.0,0.00013622,2]
[401409015,1768189842133,-191.44753185,0.00013622,2]
[401409016,1768189842143,-150.0,0.00013622,2]
[401409017,1768189842154,-1917.77,0.00013644,2]
[401409018,1768189842167,-999.0,0.00013671,2]
[401409019,1768189842178,-500.0,0.00013677,2]
[401409020,1768189842189,-178.73,0.00013677,2]
[401409021,1768189842200,-500.0,0.00013698,2]
[401409022,1768189842210,-602.58106697,0.00013698,2]
[401409023,1768189842220,-500.0,0.00013698,2]
[401409024,1768189842229,-500.0,0.00013698,2]
[401409025,1768189842241,-540.03623195,0.00013698,2]
[401409026,1768189842253,-500.0,0.00013698,2]
[401409027,1768189842264,-500.0,0.00013698,2]
[401409028,1768189842275,-500.0,0.00013698,2]
[401409029,1768189842286,-500.0,0.00013698,2]
[401409030,1768189842296,-500.0,0.00013698,2]
[401409031,1768189842306,-500.0,0.00013698,2]
[401409032,1768189842316,-500.0,0.00013698,2]
[401409033,1768189842326,-500.0,0.00013698,2]
[401409034,1768189842335,-526.37134529,0.00013698,2]
[401409035,1768189842345,-341.67884985,0.00013698,2]
[401409036,1768189842355,-500.0,0.00013698,2]
[401409037,1768189842365,-500.0,0.00013698,2]
[401409038,1768189842374,-500.0,0.00013698,2]
[401409039,1768189842383,-500.0,0.00013698,2]
[401409040,1768189842392,-500.0,0.00013698,2]
[401409041,1768189842402,-500.0,0.00013698,2]
[401409042,1768189842412,-500.0,0.00013698,2]
[401409043,1768189842422,-500.0,0.00013698,2]
[401409044,1768189842431,-500.0,0.00013698,2]
[401409045,1768189842441,-551.14146089,0.00013698,2]
[401409046,1768189842450,-500.0,0.00013698,2]
[401409047,1768189842460,-200.63190487,0.00013698,2]
[401409048,1768189842470,-500.0,0.00013698,2]
[401409049,1768189842480,-500.0,0.00013698,2]
[401409050,1768189842490,-500.0,0.00013698,2]
[401409051,1768189842500,-330.30276578,0.00013698,2]
[401409052,1768189842510,-500.0,0.00013698,2]
[401409053,1768189842519,-500.0,0.00013698,2]
[401409054,1768189842529,-500.0,0.00013698,2]
[401409055,1768189842538,-500.0,0.00013698,2]
[401409056,1768189842548,-500.0,0.00013698,2]
[401409057,1768189842558,-500.0,0.00013698,2]
[401409058,1768189842568,-518.76755169,0.00013698,2]
[401409059,1768189842578,-500.0,0.00013698,2]
[401409060,1768189842588,-404.51117323,0.00013698,2]
[401409061,1768189842598,-438.84,0.00013699,2]
[401409062,1768189842609,-999.0,0.00013726,2]
[401409063,1768189842619,-500.0,0.00013732,2]
[401409064,1768189842629,-999.0,0.0001378,2]
[401409065,1768189842639,-500.0,0.00013787,2]
[401409066,1768189842649,-10400.84246454,0.00013798,2]
[401409067,1768189842658,-14654.50615538,0.00013798,2]
[401409068,1768189842668,-999.0,0.00013835,2]
[401409069,1768189842678,-500.0,0.00013841,2]
[401409070,1768189842688,-200.0,0.00013848,2]
[401409071,1768189842698,-500.0,0.00013848,2]
[401409072,1768189842707,-200.0,0.00013848,2]
[401409073,1768189842716,-1138.28,0.00013848,2]
[401409074,1768189842726,-999.0,0.0001389,2]
[401409075,1768189842736,-186.2930836,0.00013896,2]
[401409076,1768189842746,-999.0,0.00013945,2]
[401409077,1768189842756,-999.0,0.00014,2]
[401409078,1768189842765,-1917.77,0.00014036,2]
[401409079,1768189842775,-809.67411052,0.00014054,2]
[401409080,1768189842785,-999.0,0.00014054,2]
[401409081,1768189842794,-999.0,0.00014109,2]
[401409082,1768189842805,-1138.28,0.00014122,2]
[401409083,1768189842815,-999.0,0.00014164,2]
[401409084,1768189842824,-300.0,0.00014175,2]
[401409085,1768189842834,-255.0,0.00014207,2]
[401409086,1768189842843,-999.0,0.00014219,2]
[401409087,1768189842853,-999.0,0.00014274,2]
[401409088,1768189842863,-10400.84246454,0.00014311,2]
[401409089,1768189842873,-14654.50615538,0.00014311,2]
[401409090,1768189842882,-999.0,0.00014328,2]
[401409091,1768189842892,-420.0,0.00014372,2]
[401409092,1768189842902,-1680.0,0.00014372,2]
[401409093,1768189842912,-999.0,0.00014383,2]
[401409094,1768189842922,-200.0,0.00014396,2]
[401409095,1768189842932,-500.0,0.00014396,2]
[401409096,1768189842941,-200.0,0.00014396,2]